bitfinex/quotes_ETHUSD_20250215
["timestamp","ask_amount","ask_price","bid_price","bid_amount"]
[1739641909223,5.24879809,2686.2,2685.9,0.08982996]
[1739641909516,5.24879809,2686.2,2685.8,0.81150553]
[1739641909723,8.97152809,2686.2,2685.9,0.0897251]
[1739641910310,3.72289,2686.1,2685.9,0.0897251]
[1739641910620,3.72289,2686.1,2685.7,3.57214525]
[1739641910816,3.72289,2686.1,2686.0,0.08971081]
[1739641911116,3.76942981,2686.1,2686.0,0.08971081]
[1739641911417,8.97168809,2686.1,2685.7,3.57214525]
[1739641911592,8.97168809,2686.1,2686.0,0.08971081]
[1739641911797,3.72318,2685.9,2685.4,7.29592525]
[1739641912103,3.76972332,2685.9,2685.4,7.29592525]
[1739641912618,3.76972332,2685.9,2685.4,3.57214525]
[1739641912983,3.72318,2685.9,2685.4,7.29597525]
[1739641917334,5.24879809,2685.8,2685.4,7.29597525]
[1739641917645,5.24879809,2685.8,2685.5,0.72959753]
[1739641917922,5.24879809,2685.8,2685.6,0.09004917]
[1739641919048,5.24879809,2685.8,2685.6,4.64061917]
[1739641919248,5.24879809,2685.8,2685.7,7.29556525]
[1739641919539,5.24879809,2685.8,2685.7,3.57214525]
[1739641919750,5.24879809,2685.8,2685.7,4.92875272]
[1739641921681,5.24879809,2685.8,2685.7,9.48367272]
[1739641923453,5.24879809,2685.8,2685.7,0.09000627]
[1739641923783,5.24879809,2685.8,2685.5,0.8315]
[1739641923928,5.24879809,2685.8,2685.7,0.08690986]
[1739641924129,5.29534136,2685.8,2685.4,7.29590525]
[1739641924349,5.29534136,2685.8,2685.5,0.08690986]
[1739641924550,9.01862136,2685.8,2685.5,0.08690986]
[1739641924853,8.97207809,2685.8,2685.2,3.72401]
[1739641925199,0.04654561,2685.7,2685.3,1.64836552]
[1739641925399,8.97236809,2685.6,2685.3,0.08705252]
[1739641925620,3.72378,2685.5,2685.3,0.08705252]
[1739641925908,3.72378,2685.5,2685.1,11.92814525]
[1739641926369,3.72378,2685.5,2685.2,0.08720948]
[1739641926761,8.97236809,2685.6,2685.2,0.08720948]
[1739641928088,3.72397,2685.3,2685.2,0.08720948]
[1739641928294,3.77052731,2685.3,2685.2,0.08720948]
[1739641928467,3.77052731,2685.3,2684.8,3.57214525]
[1739641928665,3.77052731,2685.3,2685.2,0.08734745]
[1739641928859,3.72411,2685.2,2684.8,3.57214525]
[1739641929254,5.24879809,2685.1,2684.8,3.57214525]
[1739641929605,9.01960503,2685.1,2684.5,7.29713525]
[1739641929806,8.97304809,2685.1,2684.5,8.48251378]
[1739641930011,0.04655958,2685.0,2684.5,4.75752378]
[1739641930157,0.04655958,2685.0,2684.5,3.57214525]
[1739641930363,12.69743809,2685.1,2684.5,3.57214525]
[1739641930680,8.97307809,2685.1,2684.5,3.57214525]
[1739641930873,8.97307809,2685.1,2684.5,7.29722525]
[1739641931085,12.69742809,2685.1,2684.5,7.29722525]
[1739641931377,3.72441,2685.0,2684.5,3.57214525]
[1739641932555,3.72457,2684.9,2684.5,3.57214525]
[1739641933089,3.72475,2684.8,2684.2,15.65455525]
[1739641933288,3.72475,2684.8,2684.2,17.66785277]
[1739641933489,3.72502,2684.6,2684.2,11.92914525]
[1739641933689,0.04656627,2684.5,2684.2,8.357]
[1739641933892,5.24879809,2684.4,2684.2,8.357]
[1739641934558,5.29536644,2684.4,2684.2,8.357]
[1739641934995,5.29536644,2684.4,2684.3,0.08761872]
[1739641935490,5.29536644,2684.4,2684.2,8.357]
[1739641935725,5.29536644,2684.4,2683.6,3.0]
[1739641935726,3.72554,2684.2,2683.6,3.57214525]
[1739641935865,3.7258,2684.0,2683.6,3.57214525]
[1739641936066,0.04657792,2683.9,2683.6,3.57214525]
[1739641936270,5.24879809,2683.8,2683.3,3.57214525]
[1739641936492,8.97494809,2683.8,2683.3,3.57214525]
[1739641936667,3.72637,2683.6,2683.3,3.57214525]
[1739641936871,5.24879809,2683.5,2683.3,3.57214525]
[1739641937270,5.29538211,2683.5,2683.3,3.57214525]
[1739641937476,5.29538208,2683.5,2683.3,3.57214525]
[1739641937793,3.72663,2683.4,2683.0,3.57214525]
[1739641937963,8.97542809,2683.4,2683.0,3.57214525]
[1739641938166,3.72675,2683.3,2682.9,9.1727]
[1739641938495,8.97542809,2683.4,2682.9,9.1727]
[1739641938802,3.72678,2683.3,2682.9,8.359]
[1739641938957,3.77337169,2683.3,2682.9,8.359]
[1739641941196,5.24879809,2683.2,2682.9,8.359]
[1739641942293,0.04659166,2683.1,2682.9,8.359]
[1739641942470,3.72706,2683.1,2682.7,3.57214525]
[1739641942670,5.24879809,2683.0,2682.7,7.29970525]
[1739641942859,5.24879809,2683.0,2682.7,3.57214525]
[1739641943905,0.04659392,2682.9,2682.7,3.57214525]
[1739641944403,5.24879809,2683.0,2682.9,3.72731]
[1739641944965,5.24879809,2683.0,2682.7,3.57214525]
[1739641945173,5.24879809,2683.0,2682.4,7.30004525]
[1739641945371,5.29539473,2682.9,2682.2,3.7282]
[1739641945680,3.72767,2682.7,2682.1,7.30053525]
[1739641945886,5.24879809,2682.6,2682.2,3.72823]
[1739641946283,5.24879809,2682.6,2682.1,3.57214525]
[1739641946284,5.29540156,2682.6,2682.1,3.57214525]
[1739641946467,5.24879809,2682.5,2682.1,3.57214525]
[1739641947746,8.97666809,2682.5,2682.1,3.57214525]
[1739641948042,5.24879809,2682.5,2682.1,3.57214525]
[1739641948407,8.97667809,2682.5,2682.1,3.57214525]
[1739641948887,5.24879809,2682.5,2682.1,3.57214525]
[1739641949826,3.72818,2682.3,2681.8,11.93514525]
[1739641950128,3.72842,2682.1,2681.8,8.363]
[1739641950289,5.24879809,2682.0,2681.8,8.363]
[1739641953114,8.97736809,2682.0,2681.8,8.363]
[1739641953313,5.24879809,2682.0,2681.8,8.363]
[1739641953522,9.73800514,2682.0,2681.8,8.363]
[1739641955629,6.00942514,2682.0,2681.8,8.363]
[1739641956002,5.24879809,2681.9,2681.8,8.363]
[1739641956827,5.24879809,2681.9,2681.5,7.30137525]
[1739641957299,5.24879809,2681.9,2681.5,3.57214525]
[1739641957500,5.24879809,2681.9,2681.6,3.72902]
[1739641957707,5.24879809,2681.9,2681.8,3.57214525]
[1739641957922,5.24879809,2681.9,2681.8,8.12217525]
[1739641958707,5.24879809,2681.9,2681.8,9.30728877]
[1739641958903,5.24879809,2681.9,2681.8,12.87943402]
[1739641959322,5.24879809,2681.9,2681.8,9.30728877]
[1739641959532,5.24879809,2681.9,2681.8,12.87943402]
[1739641961909,5.24879809,2682.8,2682.3,3.72807]
[1739641962107,6.1464099,2682.7,2682.4,3.57214525]
[1739641963241,6.1464099,2682.7,2682.4,7.30013525]
[1739641963536,6.1464099,2682.7,2682.4,7.30012525]
[1739641964340,6.1464099,2682.7,2682.4,3.57214525]
[1739641964704,5.24879809,2682.7,2682.5,3.72784]
[1739641964910,5.24879809,2682.7,2682.6,3.80912111]
[1739641967144,5.24879809,2682.7,2682.6,0.08140111]
[1739641967303,5.24879809,2682.7,2682.4,7.30013525]
[1739641967511,5.24879809,2682.7,2682.5,3.80924111]
[1739641968013,5.24879809,2682.7,2682.5,0.08140111]
[1739641968543,3.72772,2682.6,2682.5,0.08140111]
[1739641968742,3.72772,2682.6,2682.1,7.30048525]
[1739641968945,3.72772,2682.6,2682.2,0.08080969]
[1739641969130,5.7736779,2682.7,2682.4,3.72798]
[1739641969331,5.24879809,2682.7,2682.4,7.30012525]
[1739641969531,5.24879809,2682.7,2682.6,3.72772]
[1739641969949,5.24879809,2682.7,2682.6,3.80852969]
[1739641975919,5.24879809,2682.7,2682.6,0.08080969]
[1739641976342,5.24879809,2682.7,2682.6,3.80852969]
[1739641977433,5.24879809,2682.7,2682.6,0.08080969]
[1739641977973,5.24879809,2682.7,2682.6,3.80852969]
[1739641978269,5.24879809,2682.7,2682.6,4.91937318]
[1739641978450,5.24879809,2682.7,2682.6,5.74217318]
[1739641982537,5.24879809,2682.7,2682.6,4.63132969]
[1739641986849,5.24879809,2683.5,2683.3,3.72673]
[1739641987179,5.24879809,2683.4,2683.3,3.72673]
[1739641987768,5.24879809,2683.4,2683.1,3.72693]
[1739641987967,5.24879809,2683.4,2683.3,7.29889525]
[1739641992653,5.24879809,2683.4,2683.2,7.4537]
[1739641993483,5.24879809,2683.4,2683.2,3.72681]
[1739641993688,5.24879809,2683.4,2683.0,3.57214525]
[1739641993689,0.04658442,2683.3,2683.0,3.72706]
[1739641994195,5.7736779,2683.4,2683.1,3.72695]
[1739641994857,5.7736779,2683.4,2683.2,0.08000889]
[1739641995569,0.62395635,2683.3,2683.2,0.08000889]
[1739641995894,0.62395635,2683.3,2682.9,3.7272]
[1739641996091,0.62395635,2683.3,2683.2,0.08005654]
[1739641996272,5.24879809,2683.4,2683.1,7.45396]
[1739641996456,5.24879809,2683.4,2683.2,0.08008037]
[1739641997458,5.24879809,2683.3,2683.2,0.08008037]
[1739642001215,5.24879809,2683.3,2683.2,3.80697037]
[1739642001511,5.24879809,2683.3,2683.2,0.08008037]
[1739642001676,5.24879809,2683.3,2683.2,3.80697037]
[1739642001871,5.24879809,2683.3,2683.2,0.08008037]
[1739642006210,5.7736779,2683.3,2683.2,0.08008037]
[1739642006408,9.5004279,2683.3,2682.7,11.02711525]
[1739642006580,5.29539194,2683.2,2682.8,0.07731924]
[1739642006782,5.29539194,2683.2,2682.7,11.02711525]
[1739642007001,5.24879809,2683.2,2682.8,0.07731924]
[1739642007314,6.19884088,2683.2,2682.8,3.72743]
[1739642007514,6.19884088,2683.2,2682.9,0.07741457]
[1739642007684,6.24543507,2683.2,2682.9,0.07741457]
[1739642007886,6.24543507,2683.2,2682.7,11.02711525]
[1739642008061,6.19884088,2683.2,2683.0,0.07741457]
[1739642008268,0.55527726,2683.1,2682.8,3.72742]
[1739642008825,6.19884088,2683.2,2682.8,3.72744]
[1739642009812,6.19884088,2683.2,2682.9,0.07741457]
[1739642012280,6.19884088,2683.2,2682.9,3.72722]
[1739642012594,5.24879809,2683.1,2683.0,3.80448457]
[1739642012797,5.24879809,2683.1,2683.0,0.07741457]
[1739642013416,5.24879809,2683.1,2682.8,3.72738]
[1739642013621,5.24879809,2683.1,2682.9,0.07744794]
[1739642014282,5.24879809,2683.1,2683.0,3.72717]
[1739642014643,5.24879809,2683.1,2683.0,3.80461317]
[1739642015387,5.24879809,2683.1,2683.0,8.20996974]
[1739642015621,5.24879809,2683.1,2683.0,7.37675842]
[1739642015796,5.24879809,2683.1,2683.0,0.07744317]
[1739642016811,5.24879809,2683.1,2683.0,4.60481317]
[1739642017509,5.24879809,2683.1,2683.0,3.80461317]
[1739642020412,5.24879809,2683.1,2683.0,7.37675842]
[1739642029167,5.24879809,2683.1,2683.0,3.64958842]
[1739642032270,5.24879809,2683.1,2683.0,7.37675842]
[1739642032566,5.24879809,2683.1,2683.0,8.48715526]
[1739642032761,5.24879809,2683.1,2683.0,9.29885526]
[1739642033697,5.24879809,2683.1,2683.0,8.18845842]
[1739642038770,5.24879809,2683.1,2683.0,7.37675842]
[1739642040399,5.24879809,2683.1,2683.0,3.64958842]
[1739642041910,5.24879809,2683.1,2683.0,7.37675842]
[1739642043637,5.24879809,2683.1,2683.0,5.53808275]
[1739642052531,5.24879809,2683.1,2683.0,1.81091275]
[1739642053132,5.24879809,2683.1,2683.0,5.53808275]
[1739642057763,5.24879809,2683.1,2683.0,7.28061403]
[1739642058484,5.24879809,2683.1,2683.0,6.35408275]
[1739642064104,5.24879809,2683.1,2683.0,1.81091275]
[1739642065363,5.24879809,2683.1,2683.0,5.53808275]
[1739642068078,5.24879809,2683.1,2683.0,6.35408275]
[1739642069095,5.24879809,2683.1,2683.0,8.08755233]
[1739642069295,5.24879809,2683.1,2683.0,9.26903056]
[1739642071809,0.04658501,2683.7,2683.0,5.54186056]
[1739642072111,8.97486809,2683.8,2683.6,1.73346958]
[1739642072607,8.97486809,2683.8,2683.7,0.07452803]
[1739642073012,5.24879809,2683.8,2683.7,0.07452803]
[1739642073312,8.97485809,2683.8,2683.7,0.07452803]
[1739642073517,5.24879809,2683.8,2683.7,0.07452803]
[1739642073675,6.4462599,2683.8,2683.7,0.07452803]
[1739642074486,5.24879809,2683.8,2683.7,0.07452803]
[1739642076509,5.29537818,2683.8,2683.7,0.07452803]
[1739642076676,5.24879809,2683.8,2683.7,0.07452803]
[1739642079993,5.29537797,2683.8,2683.7,0.07452803]
[1739642080716,5.24879809,2683.8,2683.7,0.07452803]
[1739642081606,5.2953781,2683.8,2683.7,0.07452803]
[1739642082618,5.24879809,2683.8,2683.7,0.07452803]
[1739642087783,5.29537798,2683.8,2683.7,0.07452803]
[1739642088218,5.24879809,2683.8,2683.7,0.07452803]
[1739642105563,5.29537789,2683.8,2683.7,0.07452803]
[1739642106164,5.24879809,2683.8,2683.7,0.07452803]
[1739642107660,5.24879809,2683.8,2683.7,1.39116779]
[1739642107859,5.24879809,2683.8,2683.7,6.85082737]
[1739642108063,3.72462,2684.9,2683.7,6.85082737]
[1739642108064,3.0,2684.8,2684.4,0.7632]
[1739642108263,3.0,2684.8,2684.7,1.73346958]
[1739642108447,4.044925,2684.8,2684.7,1.73346958]
[1739642108652,5.24879809,2685.5,2684.7,1.73346958]
[1739642108956,0.73702766,2685.4,2685.3,1.73346958]
[1739642109460,4.46086766,2685.4,2685.3,1.80729728]
[1739642109674,3.72384,2685.4,2685.3,1.80729728]
[1739642110327,3.0,2685.4,2685.3,1.80729728]
[1739642110529,7.49631116,2685.4,2685.3,1.80729728]
[1739642111378,7.49631116,2685.4,2685.3,0.0738277]
[1739642111527,3.7249,2684.7,2684.4,1.73346958]
[1739642111965,3.7249,2684.7,2684.5,0.0738277]
[1739642112260,3.7249,2684.7,2684.4,1.73346958]
[1739642112445,3.72495,2684.6,2684.4,1.73346958]
[1739642113952,3.72508,2684.5,2684.0,4.36931735]
[1739642114256,3.72532,2684.4,2684.0,4.36931735]
[1739642115028,3.72532,2684.4,2684.1,0.07096245]
[1739642115864,3.72545,2684.3,2684.1,0.07096245]
[1739642116077,0.04657236,2684.2,2684.1,0.07096245]
[1739642116377,5.29537046,2684.2,2684.1,0.07096245]
[1739642116744,5.80811416,2684.2,2684.1,0.07096245]
[1739642116939,3.72574,2684.1,2683.7,4.37941735]
[1739642117147,5.24879809,2684.0,2683.7,4.37941735]
[1739642117465,8.97458809,2684.0,2683.7,3.57251735]
[1739642119761,5.24879809,2684.0,2683.7,3.57251735]
[1739642119962,5.24879809,2684.0,2683.8,3.72605]
[1739642120168,5.24879809,2684.0,2683.9,0.8069]
[1739642121187,5.24879809,2684.0,2683.9,4.53282]
[1739642122052,5.24879809,2684.3,2684.2,3.7255]
[1739642122251,5.24879809,2684.3,2684.2,4.37941735]
[1739642124477,3.72551,2684.2,2683.9,4.37941735]
[1739642124665,3.77208236,2684.2,2683.9,4.37941735]
[1739642125484,5.24879809,2684.1,2683.9,4.37941735]
[1739642127601,5.24879809,2684.1,2683.6,4.37941735]
[1739642127901,3.72578,2684.0,2683.6,4.37941735]
[1739642129103,3.72512,2684.5,2683.4,0.8069]
[1739642129104,5.24879809,2683.9,2683.4,0.8069]
[1739642129308,3.72619,2683.7,2683.4,0.8069]
[1739642129611,3.77277087,2683.7,2683.4,0.8069]
[1739642130107,3.77277087,2683.7,2683.5,0.07092899]
[1739642130399,5.24879809,2683.9,2683.5,0.07092899]
[1739642130570,0.0465805,2683.8,2683.5,0.07092899]
[1739642131183,3.72633,2683.6,2683.3,3.57251735]
[1739642131585,3.77291344,2683.6,2683.3,3.57251735]
[1739642132112,3.77291344,2683.6,2683.2,9.1632]
[1739642132113,3.72661,2683.4,2683.2,8.362]
[1739642132301,5.24879809,2683.3,2683.2,8.362]
[1739642136615,5.24879809,2683.3,2683.0,4.35911735]
[1739642137676,9.02222376,2683.3,2682.8,4.51403]
[1739642137876,8.97563809,2683.3,2682.8,4.51403]
[1739642138702,5.24879809,2683.3,2682.8,4.51403]
[1739642139077,5.24879809,2683.3,2682.8,5.99543774]
[1739642139293,9.02217685,2683.3,2682.8,5.99543774]
[1739642139495,8.97558809,2683.3,2682.8,5.99543774]
[1739642139983,5.24879809,2683.3,2682.9,3.7273]
[1739642142229,5.24879809,2683.3,2682.9,3.72723]
[1739642142524,5.24879809,2683.3,2683.1,3.72695]
[1739642142682,5.24879809,2683.3,2683.2,0.7866]
[1739642143305,5.24879809,2683.3,2683.2,4.51349]
[1739642144416,5.24879809,2683.8,2683.2,0.7866]
[1739642144721,5.24879809,2683.8,2683.6,0.7959]
[1739642145326,5.24879809,2683.8,2683.7,0.07174838]
[1739642146908,5.24879809,2683.8,2683.7,3.79793838]
[1739642147111,5.24879809,2683.8,2683.7,4.62995822]
[1739642147726,5.24879809,2683.8,2683.7,8.20247557]
[1739642149012,5.24879809,2683.8,2683.7,4.47628557]
[1739642149423,5.24879809,2683.8,2683.7,8.20247557]
[1739642150629,5.24879809,2684.1,2683.9,3.72591]
[1739642150923,5.24879809,2684.1,2683.7,8.20235557]
[1739642151327,5.24879809,2684.1,2683.8,3.72596]
[1739642151714,5.24879809,2684.1,2683.9,0.07154829]
[1739642153696,8.97444809,2684.1,2683.9,0.07154829]
[1739642154095,8.97444809,2684.1,2683.6,4.52219]
[1739642154304,8.97444809,2684.1,2684.0,0.07118142]
[1739642154504,8.97444809,2684.1,2683.6,4.52219]
[1739642154726,8.97444809,2684.1,2684.0,0.07118619]
[1739642154905,8.97444809,2684.1,2683.6,4.52219]
[1739642155100,8.97444809,2684.1,2684.0,0.07118619]
[1739642155306,8.97444809,2684.1,2683.6,4.52219]
[1739642155532,8.97444809,2684.1,2684.0,0.07118619]
[1739642155705,8.97444809,2684.1,2683.6,4.52219]
[1739642155908,8.97444809,2684.1,2684.0,0.07118619]
[1739642156227,10.2444299,2684.1,2684.0,0.07118619]
[1739642156428,10.2444299,2684.1,2683.6,4.52219]
[1739642156625,5.24879809,2684.1,2684.0,0.07118619]
[1739642156806,3.72587,2684.0,2683.4,0.7959]
[1739642157132,3.72627,2683.7,2683.2,4.52277]
[1739642157331,5.24879809,2683.6,2683.2,4.52277]
[1739642157824,5.24879809,2683.6,2683.2,8.24964]
[1739642158334,5.24879809,2683.6,2683.2,4.52277]
[1739642159737,5.24879809,2683.6,2683.2,3.72687]
[1739642159901,5.24879809,2683.6,2683.3,0.07138151]
[1739642160302,5.24879809,2683.6,2683.2,3.72687]
[1739642160942,8.97533809,2683.5,2683.3,0.07135292]
[1739642161141,9.8728449,2683.5,2683.3,0.07135292]
[1739642161305,9.8728449,2683.5,2683.0,3.72707]
[1739642161505,8.97533809,2683.5,2683.4,0.07138151]
[1739642161719,8.97533809,2683.5,2683.0,3.72707]
[1739642161916,8.97533809,2683.5,2683.4,0.07138627]
[1739642162116,8.97533809,2683.5,2683.0,3.72707]
[1739642162320,8.97533809,2683.5,2683.4,0.07138627]
[1739642162648,8.97533809,2683.5,2683.4,0.07147681]
[1739642162818,8.97533809,2683.5,2683.0,3.72707]
[1739642163023,8.97533809,2683.5,2683.4,0.07147681]
[1739642163408,10.2454989,2683.5,2683.4,0.07147681]
[1739642163845,10.2454989,2683.5,2683.0,3.72707]
[1739642164045,8.97533809,2683.5,2683.4,0.07147681]
[1739642164250,8.97533809,2683.5,2683.0,3.72707]
[1739642164415,8.97533809,2683.5,2683.4,0.07147681]
[1739642164738,8.97533809,2683.5,2683.0,3.72707]
[1739642164948,8.97533809,2683.5,2683.4,0.07147681]
[1739642165155,6.5189589,2683.5,2683.4,0.07147681]
[1739642165856,10.2454389,2683.5,2683.0,3.72705]
[1739642166031,8.97527809,2683.5,2683.4,0.07147681]
[1739642166230,8.97527809,2683.5,2683.0,3.72705]
[1739642166456,8.97527809,2683.5,2683.4,0.07147681]
[1739642166657,8.97527809,2683.5,2683.0,3.72705]
[1739642166951,12.70183809,2683.5,2683.4,0.07147681]
[1739642167132,3.72679,2683.3,2682.8,8.06117735]
[1739642168448,10.2455419,2683.5,2682.8,8.06117735]
[1739642168646,13.9721319,2683.5,2682.9,3.72724]
[1739642168846,10.2455419,2683.5,2682.9,3.72724]
[1739642169228,13.9721419,2683.5,2682.9,3.72724]
[1739642169861,5.24879809,2683.4,2682.9,3.72724]
[1739642170047,5.24879809,2683.4,2682.9,4.79030203]
[1739642170354,5.24879809,2683.4,2682.9,1.06306203]
[1739642170556,5.24879809,2683.4,2683.1,3.72693]
[1739642171357,5.24879809,2683.4,2683.0,3.72705]
[1739642171759,5.24879809,2683.4,2683.0,7.45412]
[1739642172056,5.24879809,2683.4,2683.0,3.72705]
[1739642172619,5.24879809,2683.4,2683.3,0.7613]
[1739642173025,5.24879809,2683.4,2683.3,4.48805]
[1739642175062,5.24879809,2683.4,2683.3,4.55977932]
[1739642175756,5.24879809,2683.4,2683.3,5.74571099]
[1739642180859,5.24879809,2683.4,2683.3,0.07172932]
[1739642181084,5.24879809,2683.4,2683.0,4.52539]
[1739642181275,5.24879809,2683.4,2683.3,0.07151489]
[1739642181438,5.24879809,2683.4,2683.0,4.52539]
[1739642181636,5.24879809,2683.4,2683.3,0.07151489]
[1739642181835,5.24879809,2683.4,2683.0,4.52539]
[1739642182031,5.24879809,2683.4,2683.3,0.07151489]
[1739642182237,5.24879809,2683.4,2683.1,3.72695]
[1739642182474,5.24879809,2683.4,2683.3,0.07151489]
[1739642182638,5.24879809,2683.4,2683.1,3.72695]
[1739642182993,5.24879809,2683.4,2683.3,4.52505]
[1739642183565,5.24879809,2683.4,2683.3,4.59665065]
[1739642187360,5.24879809,2683.4,2683.3,0.86990065]
[1739642187673,5.24879809,2683.4,2683.3,0.07160065]
[1739642187863,5.24879809,2683.4,2683.3,3.72675]
[1739642188073,5.24879809,2683.4,2683.3,3.79559852]
[1739642189047,5.24879809,2683.4,2683.3,5.0069597]
[1739642195747,5.24879809,2683.4,2683.3,0.06884852]
[1739642196184,5.24879809,2683.4,2683.3,0.06889606]
[1739642196380,5.24879809,2683.4,2683.2,3.72682]
[1739642196585,5.24879809,2683.4,2683.3,0.06890556]
[1739642196889,5.24879809,2683.4,2683.2,3.72682]
[1739642197083,5.24879809,2683.4,2683.3,0.06890556]
[1739642197284,6.1463249,2683.4,2683.0,3.72712]
[1739642197496,5.24879809,2683.4,2683.3,0.06892458]
[1739642197973,5.24879809,2683.4,2683.0,3.72712]
[1739642198172,5.24879809,2683.4,2683.0,3.72707]
[1739642198353,5.24879809,2683.4,2683.1,3.79586934]
[1739642201586,5.24879809,2683.4,2683.1,0.06892934]
[1739642201785,5.24879809,2683.4,2683.2,3.7268]
[1739642202167,5.24879809,2683.4,2683.3,0.06902444]
[1739642202487,5.24879809,2683.4,2683.2,3.7268]
[1739642202689,5.24879809,2683.4,2683.3,0.06902444]
[1739642202853,5.24879809,2683.4,2683.2,3.7268]
[1739642203054,5.24879809,2683.4,2683.3,0.06902444]
[1739642203267,5.24879809,2683.4,2683.3,3.72675]
[1739642203468,5.24879809,2683.9,2683.4,3.72661]
[1739642203691,5.24879809,2683.9,2683.6,3.72626]
[1739642204257,5.24879809,2683.9,2683.7,0.06895787]
[1739642209184,5.24879809,2683.9,2683.7,3.79511787]
[1739642209763,5.24879809,2683.9,2683.7,3.79507787]
[1739642210167,5.24879809,2683.9,2683.7,7.52117787]
[1739642210384,5.24879809,2683.9,2683.8,8.08477735]
[1739642210593,5.24879809,2683.9,2683.8,3.57251735]
[1739642210765,5.24879809,2683.9,2683.8,0.0688913]
[1739642210969,5.24879809,2683.9,2683.7,3.7261]
[1739642211388,5.24879809,2683.9,2683.8,0.0688913]
[1739642211770,5.24879809,2683.9,2683.7,3.7261]
[1739642212000,5.24879809,2683.9,2683.8,0.0688913]
[1739642212302,5.24879809,2683.9,2683.8,3.72606]
[1739642212599,5.24879809,2683.9,2683.8,3.7949513]
[1739642212902,5.24879809,2683.9,2683.8,0.0688913]
[1739642213092,5.24879809,2683.9,2683.7,4.53458174]
[1739642213292,5.24879809,2683.9,2683.8,3.7949513]
[1739642214370,5.24879809,2683.9,2683.8,4.16813688]
[1739642214804,5.24879809,2683.9,2683.8,4.95433688]
[1739642214971,5.24879809,2683.9,2683.8,8.52685423]
[1739642216112,5.24879809,2683.9,2683.8,4.80079423]
[1739642216306,5.24879809,2683.9,2683.8,3.64140865]
[1739642217094,5.24879809,2683.9,2683.8,7.36746865]
[1739642221610,5.24879809,2684.4,2684.3,3.72536]
[1739642221779,8.97333809,2684.9,2684.3,7.29787735]
[1739642221973,8.97333809,2684.9,2684.4,3.72521]
[1739642222274,0.89733381,2684.8,2684.4,3.72521]
[1739642222514,0.89733381,2684.8,2684.5,0.06861082]
[1739642222817,0.89733381,2684.8,2684.3,7.29786735]
[1739642223114,8.97333809,2684.9,2684.6,0.06861082]
[1739642223317,8.97333809,2684.9,2684.3,7.29786735]
[1739642223475,8.97333809,2684.9,2684.7,0.06861082]
[1739642223677,8.97333809,2684.9,2684.3,7.29786735]
[1739642223916,8.97333809,2684.9,2684.8,0.06838744]
[1739642224207,3.7247,2684.8,2684.3,3.57251735]
[1739642224605,3.7247,2684.8,2684.3,7.29779735]
[1739642224794,10.2698459,2684.9,2684.4,3.72522]
[1739642224990,5.24879809,2684.8,2684.5,3.72506]
[1739642225191,5.24879809,2684.8,2684.6,0.8202]
[1739642225488,5.24879809,2684.8,2684.6,4.54506]
[1739642225908,5.24879809,2684.8,2684.6,0.8202]
[1739642226117,5.24879809,2684.8,2684.5,3.72506]
[1739642227484,5.24879809,2684.8,2684.5,7.45007]
[1739642227684,5.24879809,2684.8,2684.6,3.57251735]
[1739642228405,5.24879809,2684.8,2684.7,3.72481]
[1739642230489,5.24879809,2684.8,2684.7,4.54501]
[1739642231089,5.24879809,2684.8,2684.7,0.8202]
[1739642231289,5.24879809,2684.8,2684.7,4.54501]
[1739642234913,5.24879809,2684.8,2684.7,4.61304101]
[1739642235114,5.24879809,2684.8,2684.7,0.88823101]
[1739642235425,5.24879809,2684.8,2684.7,0.06803101]
[1739642236236,5.24879809,2684.8,2684.7,0.87998285]
[1739642236832,5.24879809,2684.8,2684.7,5.35889285]
[1739642238510,5.24879809,2685.3,2685.0,3.72428]
[1739642239029,5.24879809,2685.3,2685.1,0.06790272]
[1739642240234,5.24879809,2685.3,2685.1,1.55847273]
[1739642241016,5.24879809,2685.3,2685.1,5.28262273]
[1739642243437,5.24879809,2685.3,2685.2,7.29662735]
[1739642243900,5.24879809,2685.3,2685.2,7.36392684]
[1739642244923,5.24879809,2685.3,2685.2,8.11802684]
[1739642245117,5.24879809,2685.3,2685.2,9.37589153]
[1739642246402,5.24879809,2685.9,2685.5,3.72361]
[1739642246934,5.24879809,2685.9,2685.6,3.79072927]
[1739642247325,5.24879809,2685.9,2685.6,0.06720927]
[1739642248139,5.24879809,2685.9,2685.6,4.15464193]
[1739642248429,5.24879809,2685.9,2685.6,0.43118193]
[1739642250433,8.97197809,2685.9,2685.6,0.43118193]
[1739642251913,5.24879809,2685.9,2685.7,0.7806]
[1739642252149,5.24879809,2685.9,2685.7,4.57102836]
[1739642252309,5.24879809,2685.9,2685.8,4.06601745]
[1739642252841,5.24879809,2685.9,2685.8,4.13305581]
[1739642253739,5.24879809,2685.9,2685.8,7.85633581]
[1739642253909,5.24879809,2685.9,2685.8,4.13305581]
[1739642257346,5.24879809,2685.9,2685.8,0.56053846]
[1739642261047,5.24879809,2685.9,2685.8,4.28381846]
[1739642261618,5.24879809,2685.9,2685.8,6.01365607]
[1739642262254,5.24879809,2685.9,2685.8,2.29037607]
[1739642273568,5.24879809,2685.9,2685.8,0.06703836]
[1739642273760,5.29533747,2685.9,2685.8,0.06703836]
[1739642273930,3.72329,2685.8,2685.2,2.53303761]
[1739642274131,3.72351,2685.7,2685.2,2.53303761]
[1739642274732,3.72358,2685.6,2685.2,2.53303761]
[1739642274934,4.468267,2685.6,2685.2,1.72983761]
[1739642275156,3.72378,2685.5,2685.0,1.72983761]
[1739642275354,3.72378,2685.5,2684.9,12.08045]
[1739642275355,8.97273809,2685.4,2684.9,8.356]
[1739642275532,3.72408,2685.3,2684.8,1.72983761]
[1739642275735,3.72408,2685.3,2684.7,0.8032]
[1739642275933,3.72408,2685.3,2684.7,1.98554584]
[1739642276358,3.72408,2685.3,2684.7,5.71034584]
[1739642276751,3.724,2685.3,2684.7,5.71026584]
[1739642276932,8.97273809,2685.4,2684.7,1.98554584]
[1739642277144,12.69666809,2685.4,2684.8,3.72465]
[1739642277469,5.24879809,2685.4,2685.0,4.52751]
[1739642277771,5.24879809,2685.4,2685.1,3.72422]
[1739642278275,5.24879809,2685.4,2685.3,4.52717]
[1739642278873,6.98985,2686.2,2685.3,4.52717]
[1739642278874,5.24879809,2685.8,2685.6,3.72353]
[1739642279053,5.24879809,2686.1,2685.6,3.72353]
[1739642279975,5.24879809,2686.1,2685.7,0.06214268]
[1739642281877,8.97166809,2686.1,2685.7,0.06214268]
[1739642282075,3.72309,2686.0,2685.5,3.57059835]
[1739642282392,8.97166809,2686.1,2685.8,0.06214268]
[1739642282677,8.97166809,2686.1,2685.5,7.29427835]
[1739642282842,8.97166809,2686.1,2685.9,0.06214268]
[1739642283042,8.97166809,2686.1,2685.5,7.29427835]
[1739642283591,8.97166809,2686.1,2685.6,0.06214268]
[1739642283763,8.97166809,2686.1,2685.6,3.78568268]
[1739642284998,3.72321,2685.9,2685.6,0.06214268]